[Event "Early-Titled-Tuesday-Blitz-March-05-2024"]
[Site "Chess.com"]
[Date "2024.03.05"]
[Round "1"]
[White "CarlosjPineror"]
[Black "abc_xyz4744"]
[Result "1-0"]
[WhiteElo "2713"]
[BlackElo "2415"]
[TimeControl "180+1"]
[EndTime "8:07:08 PST"]
[Termination "CarlosjPineror won by checkmate"]

1. e4 {[%clk 0:03:00.9]} 1... c5 {[%clk 0:02:57.2]} 2. Nf3 {[%clk 0:03:00.7]}
2... g6 {[%clk 0:02:56]} 3. g3 {[%clk 0:02:59.3]} 3... Bg7 {[%clk 0:02:53.6]} 4.
Bg2 {[%clk 0:02:59.1]} 4... Nc6 {[%clk 0:02:54.2]} 5. O-O {[%clk 0:02:59.1]}
5... d6 {[%clk 0:02:54.3]} 6. h3 {[%clk 0:02:58.4]} 6... e5 {[%clk 0:02:54.6]}
7. c3 {[%clk 0:02:51.5]} 7... Nge7 {[%clk 0:02:49.5]} 8. Na3 {[%clk 0:02:50.6]}
8... O-O {[%clk 0:02:48.5]} 9. Nc2 {[%clk 0:02:49.4]} 9... f5 {[%clk 0:02:46.3]}
10. d3 {[%clk 0:02:49.1]} 10... h6 {[%clk 0:02:43.7]} 11. a3 {[%clk 0:02:46.6]}
11... Be6 {[%clk 0:02:43]} 12. b4 {[%clk 0:02:46.2]} 12... b6 {[%clk 0:02:31.9]}
13. Bb2 {[%clk 0:02:44.8]} 13... d5 {[%clk 0:02:30.3]} 14. Re1 {[%clk
0:02:30.7]} 14... fxe4 {[%clk 0:02:23]} 15. dxe4 {[%clk 0:02:27.7]} 15... d4
{[%clk 0:02:23.6]} 16. cxd4 {[%clk 0:02:15.4]} 16... cxd4 {[%clk 0:02:24.5]} 17.
Qd2 {[%clk 0:02:12]} 17... Qd7 {[%clk 0:02:23.2]} 18. Kh2 {[%clk 0:02:11.6]}
18... Kh7 {[%clk 0:02:21]} 19. Rec1 {[%clk 0:02:11.3]} 19... Rac8 {[%clk
0:02:20.1]} 20. Nce1 {[%clk 0:02:11.4]} 20... Rc7 {[%clk 0:02:06.3]} 21. Nd3
{[%clk 0:02:10.9]} 21... Nc8 {[%clk 0:02:06.5]} 22. b5 {[%clk 0:02:03.8]} 22...
Na5 {[%clk 0:02:04.4]} 23. Rxc7 {[%clk 0:01:59]} 23... Qxc7 {[%clk 0:02:01.8]}
24. Rc1 {[%clk 0:01:59.8]} 24... Qe7 {[%clk 0:01:47.7]} 25. Qb4 {[%clk
0:01:47.8]} 25... Qxb4 {[%clk 0:01:33.7]} 26. axb4 {[%clk 0:01:47.6]} 26... Nc4
{[%clk 0:01:34]} 27. Rc2 {[%clk 0:01:47.9]} 27... N8d6 {[%clk 0:01:31.6]} 28.
Nd2 {[%clk 0:01:32.4]} 28... Nxd2 {[%clk 0:01:27.6]} 29. Rxd2 {[%clk 0:01:33.3]}
29... Nxb5 {[%clk 0:01:27.2]} 30. f4 {[%clk 0:01:32.7]} 30... Bc4 {[%clk
0:01:10.8]} 31. Nxe5 {[%clk 0:01:25.5]} 31... Bxe5 {[%clk 0:01:08.6]} 32. fxe5
{[%clk 0:01:26.4]} 32... d3 {[%clk 0:01:08.4]} 33. h4 {[%clk 0:01:23.6]} 33...
a5 {[%clk 0:01:06.1]} 34. bxa5 {[%clk 0:01:21.8]} 34... bxa5 {[%clk 0:01:07]}
35. Bh3 {[%clk 0:01:22.3]} 35... a4 {[%clk 0:01:04.4]} 36. e6 {[%clk 0:01:21.8]}
36... a3 {[%clk 0:01:02.3]} 37. Be5 {[%clk 0:01:10.4]} 37... Re8 {[%clk
0:00:58.7]} 38. Ba1 {[%clk 0:00:56.4]} 38... h5 {[%clk 0:00:56.1]} 39. Kg2
{[%clk 0:00:55.1]} 39... Bxe6 {[%clk 0:00:56]} 40. Bxe6 {[%clk 0:00:54.7]} 40...
Rxe6 {[%clk 0:00:56.7]} 41. Rxd3 {[%clk 0:00:55.6]} 41... Rxe4 {[%clk
0:00:56.9]} 42. Rb3 {[%clk 0:00:53.1]} 42... Nd4 {[%clk 0:00:31.7]} 43. Rxa3
{[%clk 0:00:51.3]} 43... Nf5 {[%clk 0:00:24.8]} 44. Kf3 {[%clk 0:00:47.9]} 44...
Rb4 {[%clk 0:00:19.7]} 45. Bc3 {[%clk 0:00:47.2]} 45... Rb7 {[%clk 0:00:19.6]}
46. Ra8 {[%clk 0:00:41.9]} 46... Rc7 {[%clk 0:00:19.5]} 47. Rh8# {[%clk
0:00:41]} 1-0

[Event "Early-Titled-Tuesday-Blitz-March-05-2024"]
[Site "Chess.com"]
[Date "2024.03.05"]
[Round "1"]
[White "Matols"]
[Black "HATilay"]
[Result "0-1"]
[WhiteElo "2397"]
[BlackElo "2698"]
[TimeControl "180+1"]
[EndTime "8:07:08 PST"]
[Termination "HATilay won by checkmate"]

1. d4 {[%clk 0:03:00.9]} 1... Nf6 {[%clk 0:03:00]} 2. c4 {[%clk 0:03:01.4]} 2...
e6 {[%clk 0:03:00.4]} 3. g3 {[%clk 0:03:01.8]} 3... d5 {[%clk 0:03:00.6]} 4. Nf3
{[%clk 0:03:01.3]} 4... Be7 {[%clk 0:03:01.1]} 5. Bg2 {[%clk 0:03:01.2]} 5...
O-O {[%clk 0:03:01]} 6. O-O {[%clk 0:03:01.8]} 6... dxc4 {[%clk 0:03:00.4]} 7.
Qc2 {[%clk 0:03:02.2]} 7... a6 {[%clk 0:03:00.6]} 8. a4 {[%clk 0:03:02.8]} 8...
Bd7 {[%clk 0:03:00.7]} 9. Qxc4 {[%clk 0:03:02.4]} 9... Bc6 {[%clk 0:03:00.9]}
10. Bf4 {[%clk 0:03:02.8]} 10... Bd6 {[%clk 0:03:01]} 11. Qc1 {[%clk 0:02:52.8]}
11... Nbd7 {[%clk 0:03:01.1]} 12. Nc3 {[%clk 0:02:50.7]} 12... b5 {[%clk
0:03:01.3]} 13. Nxb5 {[%clk 0:02:36.8]} 13... Bxb5 {[%clk 0:01:33.8]} 14. axb5
{[%clk 0:02:34.8]} 14... axb5 {[%clk 0:01:34.2]} 15. Rxa8 {[%clk 0:02:29.6]}
15... Qxa8 {[%clk 0:01:34.7]} 16. Ne5 {[%clk 0:02:19.6]} 16... Qa7 {[%clk
0:01:16.7]} 17. Nc6 {[%clk 0:02:16.4]} 17... Qa2 {[%clk 0:01:13.6]} 18. Bxd6
{[%clk 0:02:13.4]} 18... cxd6 {[%clk 0:01:13.9]} 19. e3 {[%clk 0:02:06]} 19...
Nb6 {[%clk 0:01:05.6]} 20. Ne7+ {[%clk 0:01:52.3]} 20... Kh8 {[%clk 0:01:05.1]}
21. Qc7 {[%clk 0:01:52.5]} 21... Nc4 {[%clk 0:01:01.4]} 22. b4 {[%clk
0:01:40.8]} 22... Qa4 {[%clk 0:00:49.2]} 23. Nc6 {[%clk 0:01:29]} 23... g6
{[%clk 0:00:29.2]} 24. Qe7 {[%clk 0:01:20.2]} 24... Kg7 {[%clk 0:00:28]} 25. Nd8
{[%clk 0:01:05.1]} 25... Rxd8 {[%clk 0:00:22.5]} 26. Qxd8 {[%clk 0:01:04.9]}
26... Qxb4 {[%clk 0:00:23.3]} 27. Ra1 {[%clk 0:00:57.6]} 27... Ng4 {[%clk
0:00:20.6]} 28. h3 {[%clk 0:00:50.4]} 28... Nxf2 {[%clk 0:00:16.8]} 29. Ra8
{[%clk 0:00:33.5]} 29... Qe1+ {[%clk 0:00:14.2]} 30. Kh2 {[%clk 0:00:33.6]}
30... Nxe3 {[%clk 0:00:10.9]} 31. Qh8+ {[%clk 0:00:20.3]} 31... Kh6 {[%clk
0:00:10.9]} 32. Qf8+ {[%clk 0:00:20.4]} 32... Kh5 {[%clk 0:00:08]} 33. g4+
{[%clk 0:00:18.6]} 33... Nexg4+ {[%clk 0:00:08.4]} 34. hxg4+ {[%clk 0:00:19.1]}
34... Nxg4+ {[%clk 0:00:09.1]} 35. Kh3 {[%clk 0:00:17]} 35... Qh4# {[%clk
0:00:09.8]} 0-1

[Event "Early-Titled-Tuesday-Blitz-March-05-2024"]
[Site "Chess.com"]
[Date "2024.03.05"]
[Round "1"]
[White "Preobrazhenska_D2011"]
[Black "Nemegejas"]
[Result "0-1"]
[WhiteElo "2443"]
[BlackElo "2786"]
[TimeControl "180+1"]
[EndTime "8:07:10 PST"]
[Termination "Nemegejas won on time"]

1. e4 {[%clk 0:02:53.8]} 1... c6 {[%clk 0:03:00.4]} 2. d4 {[%clk 0:02:53.5]}
2... d5 {[%clk 0:03:00.9]} 3. e5 {[%clk 0:02:54.2]} 3... Bf5 {[%clk 0:03:01.2]}
4. h4 {[%clk 0:02:55]} 4... h5 {[%clk 0:03:01.1]} 5. Bd3 {[%clk 0:02:55.5]} 5...
Bxd3 {[%clk 0:03:01.3]} 6. Qxd3 {[%clk 0:02:56.4]} 6... Qa5+ {[%clk 0:03:00.9]}
7. Nd2 {[%clk 0:02:56.9]} 7... e6 {[%clk 0:03:01]} 8. Nf3 {[%clk 0:02:52.3]}
8... Nh6 {[%clk 0:02:59.9]} 9. O-O {[%clk 0:02:45]} 9... Nf5 {[%clk 0:03:00.2]}
10. a4 {[%clk 0:02:44.5]} 10... Qa6 {[%clk 0:02:55.9]} 11. c4 {[%clk 0:02:44.2]}
11... c5 {[%clk 0:02:54]} 12. dxc5 {[%clk 0:01:56.5]} 12... Nc6 {[%clk
0:02:51.1]} 13. Qc2 {[%clk 0:01:40.3]} 13... Nb4 {[%clk 0:02:25.2]} 14. Qb3
{[%clk 0:01:32.6]} 14... Bxc5 {[%clk 0:02:24.8]} 15. cxd5 {[%clk 0:01:25.6]}
15... exd5 {[%clk 0:02:23.8]} 16. Ng5 {[%clk 0:00:55.2]} 16... Nd4 {[%clk
0:02:15.3]} 17. Qh3 {[%clk 0:00:50]} 17... Nd3 {[%clk 0:01:59.4]} 18. Kh1 {[%clk
0:00:31.7]} 18... O-O {[%clk 0:01:05]} 19. b3 {[%clk 0:00:19]} 19... Rae8 {[%clk
0:00:24.7]} 20. Ba3 {[%clk 0:00:14]} 20... Bxa3 {[%clk 0:00:24.9]} 21. Rxa3
{[%clk 0:00:14.9]} 21... Rxe5 {[%clk 0:00:24.8]} 22. Qg3 {[%clk 0:00:09.7]}
22... Rfe8 {[%clk 0:00:23.4]} 23. Raa1 {[%clk 0:00:09.3]} 23... Nf5 {[%clk
0:00:20.4]} 24. Qh3 {[%clk 0:00:09.1]} 24... g6 {[%clk 0:00:17.7]} 25. Ndf3
{[%clk 0:00:09.1]} 25... Re2 {[%clk 0:00:16.2]} 26. Kg1 {[%clk 0:00:07.1]} 26...
Qb6 {[%clk 0:00:16.7]} 27. Kh1 {[%clk 0:00:03.8]} 27... Nxf2+ {[%clk 0:00:15.9]}
28. Rxf2 {[%clk 0:00:04.2]} 28... Qxf2 {[%clk 0:00:16.8]} 29. Rg1 {[%clk
0:00:03.8]} 29... d4 {[%clk 0:00:15.8]} 30. Qh2 {[%clk 0:00:03.7]} 30... Ng3+
{[%clk 0:00:15.5]} 0-1

[Event "Early-Titled-Tuesday-Blitz-March-05-2024"]
[Site "Chess.com"]
[Date "2024.03.05"]
[Round "1"]
[White "Sokoloco"]
[Black "KorolDimitriy75"]
[Result "1-0"]
[WhiteElo "2782"]
[BlackElo "2442"]
[TimeControl "180+1"]
[EndTime "8:07:10 PST"]
[Termination "Sokoloco won on time"]

1. b3 {[%clk 0:03:00.9]} 1... c5 {[%clk 0:02:59.7]} 2. Bb2 {[%clk 0:03:01.1]}
2... Nc6 {[%clk 0:02:59.9]} 3. e3 {[%clk 0:03:01.8]} 3... d6 {[%clk 0:03:00]} 4.
d4 {[%clk 0:03:01.9]} 4... cxd4 {[%clk 0:02:54.2]} 5. exd4 {[%clk 0:03:02.8]}
5... d5 {[%clk 0:02:51.5]} 6. Nf3 {[%clk 0:02:59.8]} 6... Nf6 {[%clk 0:02:50.9]}
7. Be2 {[%clk 0:02:53.2]} 7... g6 {[%clk 0:02:51.1]} 8. O-O {[%clk 0:02:43.6]}
8... Bg7 {[%clk 0:02:52]} 9. c4 {[%clk 0:02:34.1]} 9... O-O {[%clk 0:02:51.8]}
10. Nc3 {[%clk 0:02:33.5]} 10... b6 {[%clk 0:02:34.4]} 11. Ne5 {[%clk
0:02:29.7]} 11... Bb7 {[%clk 0:02:33.6]} 12. Bf3 {[%clk 0:02:29.7]} 12... Rc8
{[%clk 0:02:30.2]} 13. Nxd5 {[%clk 0:02:22.7]} 13... Nxd5 {[%clk 0:00:50.6]} 14.
Bxd5 {[%clk 0:02:23.6]} 14... e6 {[%clk 0:00:40.9]} 15. Nxc6 {[%clk 0:02:12]}
15... Bxc6 {[%clk 0:00:41.8]} 16. Bxc6 {[%clk 0:02:12.9]} 16... Rxc6 {[%clk
0:00:41.9]} 17. Qf3 {[%clk 0:02:13.8]} 17... Rd6 {[%clk 0:00:39.6]} 18. Ba3
{[%clk 0:02:14.1]} 18... Bxd4 {[%clk 0:00:30]} 19. Bxd6 {[%clk 0:02:09.7]} 19...
Qxd6 {[%clk 0:00:30.9]} 20. Rad1 {[%clk 0:02:09.9]} 20... Rd8 {[%clk 0:00:28.8]}
21. g3 {[%clk 0:01:39.4]} 21... Kg7 {[%clk 0:00:28.3]} 22. Kg2 {[%clk
0:01:31.3]} 22... e5 {[%clk 0:00:25.6]} 23. h4 {[%clk 0:01:29.9]} 23... h5
{[%clk 0:00:25]} 24. Qe4 {[%clk 0:01:23.3]} 24... f5 {[%clk 0:00:19.7]} 25. Qe2
{[%clk 0:00:44.4]} 25... Qc6+ {[%clk 0:00:17.1]} 26. f3 {[%clk 0:00:44.9]} 26...
Rd6 {[%clk 0:00:15.4]} 27. Qd2 {[%clk 0:00:34.9]} 27... a5 {[%clk 0:00:14.3]}
28. Qg5 {[%clk 0:00:34.7]} 28... Qd7 {[%clk 0:00:13.6]} 29. Rd3 {[%clk
0:00:31.5]} 29... Qc6 {[%clk 0:00:09]} 30. Rfd1 {[%clk 0:00:30.6]} 30... Kf7
{[%clk 0:00:06.8]} 31. Qh6 {[%clk 0:00:29.3]} 31... Kf6 {[%clk 0:00:06.4]} 32.
Qf8+ {[%clk 0:00:28.4]} 32... Ke6 {[%clk 0:00:06.2]} 33. Re1 {[%clk 0:00:23.9]}
33... Qc5 {[%clk 0:00:05.1]} 34. Qg7 {[%clk 0:00:17.6]} 1-0

[Event "Early-Titled-Tuesday-Blitz-March-05-2024"]
[Site "Chess.com"]
[Date "2024.03.05"]
[Round "1"]
[White "Sofiia_Hryzlova"]
[Black "xxysoul6"]
[Result "0-1"]
[WhiteElo "2485"]
[BlackElo "2910"]
[TimeControl "180+1"]
[EndTime "8:07:13 PST"]
[Termination "xxysoul6 won by resignation"]

1. Nf3 {[%clk 0:03:00.9]} 1... Nf6 {[%clk 0:02:57.8]} 2. g3 {[%clk 0:03:01.2]}
2... g6 {[%clk 0:02:55.1]} 3. Bg2 {[%clk 0:03:01.4]} 3... Bg7 {[%clk 0:02:56]}
4. O-O {[%clk 0:03:00.5]} 4... O-O {[%clk 0:02:56.5]} 5. c4 {[%clk 0:03:00.7]}
5... c6 {[%clk 0:02:54.9]} 6. d3 {[%clk 0:02:59.3]} 6... d5 {[%clk 0:02:55]} 7.
Nbd2 {[%clk 0:02:53.4]} 7... Bf5 {[%clk 0:02:38.6]} 8. Re1 {[%clk 0:02:46.8]}
8... Qd7 {[%clk 0:02:30]} 9. Qc2 {[%clk 0:02:45.7]} 9... Na6 {[%clk 0:02:27.6]}
10. a3 {[%clk 0:02:41]} 10... Rfd8 {[%clk 0:02:25.7]} 11. e4 {[%clk 0:02:39.8]}
11... dxe4 {[%clk 0:02:24.9]} 12. dxe4 {[%clk 0:02:39.9]} 12... Bh3 {[%clk
0:02:25.3]} 13. Nf1 {[%clk 0:02:32.6]} 13... Bxg2 {[%clk 0:02:23.5]} 14. Kxg2
{[%clk 0:02:33.5]} 14... Nc5 {[%clk 0:02:22.6]} 15. e5 {[%clk 0:02:30.7]} 15...
Ng4 {[%clk 0:02:18.3]} 16. h3 {[%clk 0:02:22.8]} 16... Nh6 {[%clk 0:01:53.4]}
17. Be3 {[%clk 0:02:13.4]} 17... Qd3 {[%clk 0:01:35.9]} 18. Qe2 {[%clk
0:01:45.9]} 18... Qxe2 {[%clk 0:01:26.2]} 19. Rxe2 {[%clk 0:01:46.8]} 19... Nb3
{[%clk 0:01:26.9]} 20. Rae1 {[%clk 0:01:45.3]} 20... Nf5 {[%clk 0:01:27.2]} 21.
Bf4 {[%clk 0:01:34.8]} 21... Rd3 {[%clk 0:01:21.1]} 22. N1d2 {[%clk 0:01:24.3]}
22... Nbd4 {[%clk 0:01:17.9]} 23. Nxd4 {[%clk 0:01:09.6]} 23... Nxd4 {[%clk
0:01:18.8]} 24. Re4 {[%clk 0:01:09.9]} 24... Rd8 {[%clk 0:01:19]} 25. Nf1 {[%clk
0:01:03.2]} 25... a5 {[%clk 0:01:15.4]} 26. R4e3 {[%clk 0:00:54.6]} 26... Nc2
{[%clk 0:01:10]} 27. R1e2 {[%clk 0:00:53.1]} 27... Nxe3+ {[%clk 0:01:09.3]} 28.
fxe3 {[%clk 0:00:44.3]} 28... f6 {[%clk 0:01:05.3]} 29. exf6 {[%clk 0:00:40.5]}
29... Bxf6 {[%clk 0:01:05.9]} 30. e4 {[%clk 0:00:38.7]} 30... Bd4 {[%clk
0:00:59.7]} 31. e5 {[%clk 0:00:31.7]} 31... Rb3 {[%clk 0:00:47.6]} 32. Bc1
{[%clk 0:00:25.1]} 32... Rf8 {[%clk 0:00:47.7]} 33. Nh2 {[%clk 0:00:21.5]} 33...
b5 {[%clk 0:00:47.7]} 34. cxb5 {[%clk 0:00:19.5]} 34... cxb5 {[%clk 0:00:48.6]}
35. Ng4 {[%clk 0:00:19.2]} 35... Rc8 {[%clk 0:00:45.6]} 36. Bg5 {[%clk
0:00:13.7]} 36... Rxb2 {[%clk 0:00:44]} 37. Rxb2 {[%clk 0:00:13.6]} 37... Bxb2
{[%clk 0:00:44.9]} 38. Bxe7 {[%clk 0:00:14.1]} 38... Kf7 {[%clk 0:00:45.4]} 39.
Bd6 {[%clk 0:00:13.9]} 39... Ke6 {[%clk 0:00:45.9]} 40. Nf6 {[%clk 0:00:12.5]}
40... Bxe5 {[%clk 0:00:44.7]} 41. Bxe5 {[%clk 0:00:12.5]} 41... Kxe5 {[%clk
0:00:45.6]} 42. Nxh7 {[%clk 0:00:13.4]} 42... b4 {[%clk 0:00:45.2]} 43. axb4
{[%clk 0:00:12.9]} 43... axb4 {[%clk 0:00:45.6]} 0-1

[Event "Early-Titled-Tuesday-Blitz-March-05-2024"]
[Site "Chess.com"]
[Date "2024.03.05"]
[Round "1"]
[White "VladimirKramnik"]
[Black "verrbaa"]
[Result "1-0"]
[WhiteElo "2961"]
[BlackElo "2506"]
[TimeControl "180+1"]
[EndTime "8:07:16 PST"]
[Termination "VladimirKramnik won on time"]

1. e4 {[%clk 0:03:00.9]} 1... c5 {[%clk 0:02:57.5]} 2. Nf3 {[%clk 0:03:00.9]}
2... e6 {[%clk 0:02:57]} 3. c3 {[%clk 0:02:59.9]} 3... d5 {[%clk 0:02:56.4]} 4.
e5 {[%clk 0:03:00.1]} 4... d4 {[%clk 0:02:43.5]} 5. Bd3 {[%clk 0:02:59.9]} 5...
Nc6 {[%clk 0:02:42.4]} 6. Qe2 {[%clk 0:02:56.2]} 6... g6 {[%clk 0:02:07.4]} 7.
Na3 {[%clk 0:02:53.4]} 7... a6 {[%clk 0:02:00.8]} 8. Be4 {[%clk 0:02:52.4]} 8...
Qc7 {[%clk 0:01:47.7]} 9. Nc4 {[%clk 0:02:46.2]} 9... Bd7 {[%clk 0:01:40]} 10.
d3 {[%clk 0:02:40.6]} 10... b5 {[%clk 0:01:36.4]} 11. Nd6+ {[%clk 0:02:38]}
11... Bxd6 {[%clk 0:01:36.2]} 12. exd6 {[%clk 0:02:37.4]} 12... Qxd6 {[%clk
0:01:37.1]} 13. cxd4 {[%clk 0:02:36.3]} 13... cxd4 {[%clk 0:01:36.4]} 14. O-O
{[%clk 0:02:30.6]} 14... f6 {[%clk 0:01:28.7]} 15. a4 {[%clk 0:02:18.6]} 15...
b4 {[%clk 0:01:28.2]} 16. Bd2 {[%clk 0:02:10.1]} 16... Nge7 {[%clk 0:01:26.5]}
17. Bh6 {[%clk 0:02:02.4]} 17... Kf7 {[%clk 0:01:26.3]} 18. Nd2 {[%clk
0:01:55.6]} 18... Rac8 {[%clk 0:00:57.8]} 19. Nc4 {[%clk 0:01:54.3]} 19... Qb8
{[%clk 0:00:52.8]} 20. a5 {[%clk 0:01:50]} 20... Rhe8 {[%clk 0:00:48.4]} 21.
Rac1 {[%clk 0:01:39.6]} 21... Rcd8 {[%clk 0:00:34.3]} 22. Qf3 {[%clk 0:01:33.2]}
22... Ne5 {[%clk 0:00:30.5]} 23. Nxe5+ {[%clk 0:01:31.8]} 23... Qxe5 {[%clk
0:00:31.4]} 24. Bf4 {[%clk 0:01:31.4]} 24... Qxa5 {[%clk 0:00:31.3]} 25. Bc7
{[%clk 0:01:28.1]} 25... Qb5 {[%clk 0:00:31.7]} 26. Bxd8 {[%clk 0:01:22.8]}
26... Rxd8 {[%clk 0:00:32.6]} 27. Rc7 {[%clk 0:01:18.1]} 27... a5 {[%clk
0:00:27.5]} 28. Rfc1 {[%clk 0:01:12]} 28... a4 {[%clk 0:00:25]} 29. Qf4 {[%clk
0:00:53]} 29... e5 {[%clk 0:00:07.4]} 30. Qh6 {[%clk 0:00:48.7]} 30... Kg8
{[%clk 0:00:07.6]} 31. h4 {[%clk 0:00:41]} 31... f5 {[%clk 0:00:05.9]} 32. Qg5
{[%clk 0:00:35.5]} 32... Kf7 {[%clk 0:00:04.8]} 33. Bc6 {[%clk 0:00:28.8]} 33...
Qb6 {[%clk 0:00:02.4]} 34. Bxd7 {[%clk 0:00:22]} 34... a3 {[%clk 0:00:02.6]} 35.
Ba4 {[%clk 0:00:17]} 35... axb2 {[%clk 0:00:02.2]} 36. Qxe7+ {[%clk 0:00:15.5]}
1-0

[Event "Early-Titled-Tuesday-Blitz-March-05-2024"]
[Site "Chess.com"]
[Date "2024.03.05"]
[Round "1"]
[White "Elprofessor21"]
[Black "alvarorodriguezavila"]
[Result "1-0"]
[WhiteElo "2657"]
[BlackElo "2355"]
[TimeControl "180+1"]
[EndTime "8:07:16 PST"]
[Termination "Elprofessor21 won on time"]

1. d4 {[%clk 0:02:58.8]} 1... Nf6 {[%clk 0:02:59.9]} 2. Bg5 {[%clk 0:02:57.8]}
2... c5 {[%clk 0:02:58.4]} 3. d5 {[%clk 0:02:55.8]} 3... e6 {[%clk 0:02:55.5]}
4. Nc3 {[%clk 0:02:51.4]} 4... d6 {[%clk 0:02:41.4]} 5. Nf3 {[%clk 0:02:45.5]}
5... Be7 {[%clk 0:02:41.1]} 6. e4 {[%clk 0:02:44.1]} 6... exd5 {[%clk
0:02:40.8]} 7. exd5 {[%clk 0:02:43.3]} 7... O-O {[%clk 0:02:38.5]} 8. Be2 {[%clk
0:02:42.3]} 8... a6 {[%clk 0:02:39.1]} 9. a4 {[%clk 0:02:41.9]} 9... Bf5 {[%clk
0:02:34.4]} 10. O-O {[%clk 0:02:40.3]} 10... Nbd7 {[%clk 0:02:35]} 11. Bd3
{[%clk 0:02:30.8]} 11... Bg4 {[%clk 0:02:26.7]} 12. h3 {[%clk 0:02:24.4]} 12...
Bh5 {[%clk 0:02:26]} 13. Be2 {[%clk 0:02:20.6]} 13... Re8 {[%clk 0:02:16.2]} 14.
Re1 {[%clk 0:02:09.8]} 14... Rb8 {[%clk 0:01:43.2]} 15. a5 {[%clk 0:02:00.5]}
15... Bf8 {[%clk 0:01:24.7]} 16. Nd2 {[%clk 0:01:56.1]} 16... Bxe2 {[%clk
0:01:12.1]} 17. Rxe2 {[%clk 0:01:54.6]} 17... Qc7 {[%clk 0:00:47.5]} 18. Nc4
{[%clk 0:01:50]} 18... h6 {[%clk 0:00:45.8]} 19. Bf4 {[%clk 0:01:46.6]} 19...
Rxe2 {[%clk 0:00:45]} 20. Qxe2 {[%clk 0:01:44.5]} 20... Re8 {[%clk 0:00:45.9]}
21. Qf3 {[%clk 0:01:40.7]} 21... b5 {[%clk 0:00:24.1]} 22. axb6 {[%clk
0:01:38.1]} 22... Nxb6 {[%clk 0:00:24.6]} 23. Na5 {[%clk 0:01:23.7]} 23... Qd7
{[%clk 0:00:16.1]} 24. Bxh6 {[%clk 0:01:14.6]} 24... Nfxd5 {[%clk 0:00:11.8]}
25. Nxd5 {[%clk 0:01:07]} 25... Nxd5 {[%clk 0:00:12.7]} 26. Qxd5 {[%clk
0:01:04.8]} 26... gxh6 {[%clk 0:00:13.1]} 27. Nc4 {[%clk 0:01:04.6]} 27... Qe6
{[%clk 0:00:12]} 28. Qxe6 {[%clk 0:01:01.1]} 28... Rxe6 {[%clk 0:00:12.3]} 29.
Rxa6 {[%clk 0:01:00.6]} 29... d5 {[%clk 0:00:12.9]} 30. Rxe6 {[%clk 0:00:59.7]}
30... fxe6 {[%clk 0:00:13.8]} 31. Ne3 {[%clk 0:00:55.4]} 31... Bg7 {[%clk
0:00:13.4]} 32. b3 {[%clk 0:00:53.5]} 32... h5 {[%clk 0:00:13.7]} 33. h4 {[%clk
0:00:52.1]} 33... Kf7 {[%clk 0:00:14.1]} 34. g3 {[%clk 0:00:52.6]} 34... Ke7
{[%clk 0:00:13.3]} 35. Kf1 {[%clk 0:00:53.2]} 35... Kd6 {[%clk 0:00:13.9]} 36.
Ke2 {[%clk 0:00:53.9]} 36... Bd4 {[%clk 0:00:10.7]} 37. Ng2 {[%clk 0:00:53.5]}
37... Be5 {[%clk 0:00:10.6]} 38. Kd3 {[%clk 0:00:51.9]} 38... Ke7 {[%clk
0:00:10.4]} 39. c4 {[%clk 0:00:49.9]} 39... Kd6 {[%clk 0:00:10.2]} 40. Ne1
{[%clk 0:00:49.1]} 40... Bf6 {[%clk 0:00:09.7]} 41. Nf3 {[%clk 0:00:48.2]} 41...
e5 {[%clk 0:00:09.9]} 42. cxd5 {[%clk 0:00:47.9]} 42... Kxd5 {[%clk 0:00:10.8]}
43. Nd2 {[%clk 0:00:48.2]} 43... Bd8 {[%clk 0:00:09.1]} 44. Ne4 {[%clk
0:00:48.1]} 44... Be7 {[%clk 0:00:09.4]} 45. Nc3+ {[%clk 0:00:48.5]} 45... Ke6
{[%clk 0:00:09.3]} 46. Ke4 {[%clk 0:00:48.5]} 46... Bd8 {[%clk 0:00:09.4]} 47.
Na4 {[%clk 0:00:48.1]} 47... Be7 {[%clk 0:00:08.8]} 48. Nb2 {[%clk 0:00:48.7]}
48... Bd8 {[%clk 0:00:08.7]} 49. Nd3 {[%clk 0:00:49]} 1-0

[Event "Early-Titled-Tuesday-Blitz-March-05-2024"]
[Site "Chess.com"]
[Date "2024.03.05"]
[Round "1"]
[White "LouieKov2022"]
[Black "maciek_92"]
[Result "0-1"]
[WhiteElo "2476"]
[BlackElo "2869"]
[TimeControl "180+1"]
[EndTime "8:07:18 PST"]
[Termination "maciek_92 won on time"]

1. e4 {[%clk 0:02:59.3]} 1... c5 {[%clk 0:02:59.3]} 2. Nf3 {[%clk 0:02:58.6]}
2... e6 {[%clk 0:02:59.7]} 3. d4 {[%clk 0:02:58.9]} 3... cxd4 {[%clk 0:03:00.6]}
4. Nxd4 {[%clk 0:02:58.9]} 4... Nc6 {[%clk 0:03:01.1]} 5. Nc3 {[%clk 0:02:56]}
5... a6 {[%clk 0:03:00.9]} 6. Be3 {[%clk 0:02:49.5]} 6... Nf6 {[%clk 0:03:00.4]}
7. a3 {[%clk 0:02:45.9]} 7... Qc7 {[%clk 0:02:58.5]} 8. f4 {[%clk 0:02:45.9]}
8... d6 {[%clk 0:02:57.1]} 9. Qf3 {[%clk 0:02:45.9]} 9... Bd7 {[%clk 0:02:56.3]}
10. Nxc6 {[%clk 0:02:37.7]} 10... Bxc6 {[%clk 0:02:56.7]} 11. Bd3 {[%clk
0:02:23.2]} 11... Rc8 {[%clk 0:02:55.9]} 12. O-O {[%clk 0:02:19.6]} 12... Be7
{[%clk 0:02:55]} 13. Qg3 {[%clk 0:02:17.1]} 13... g6 {[%clk 0:02:53]} 14. Rae1
{[%clk 0:02:02.3]} 14... h5 {[%clk 0:02:49]} 15. Kh1 {[%clk 0:01:52.7]} 15... h4
{[%clk 0:02:46.5]} 16. Qh3 {[%clk 0:01:50.5]} 16... Kf8 {[%clk 0:02:34.3]} 17.
Bd4 {[%clk 0:01:45.1]} 17... Rh5 {[%clk 0:01:58.5]} 18. e5 {[%clk 0:01:38.6]}
18... Nd7 {[%clk 0:01:32]} 19. exd6 {[%clk 0:00:35.7]} 19... Qxd6 {[%clk
0:01:31.7]} 20. Be5 {[%clk 0:00:35.2]} 20... Nxe5 {[%clk 0:01:14.9]} 21. fxe5
{[%clk 0:00:35.2]} 21... Rxe5 {[%clk 0:01:15.8]} 22. Rxe5 {[%clk 0:00:31.5]}
22... Qxe5 {[%clk 0:01:16.7]} 23. Bxg6 {[%clk 0:00:31.1]} 23... Bf6 {[%clk
0:01:03.9]} 24. Bh5 {[%clk 0:00:26.6]} 24... Rd8 {[%clk 0:00:49.2]} 25. Bf3
{[%clk 0:00:24.9]} 25... Qf4 {[%clk 0:00:44.5]} 26. Ne2 {[%clk 0:00:20.2]} 26...
Qc4 {[%clk 0:00:38.7]} 27. b3 {[%clk 0:00:09.5]} 27... Qxc2 {[%clk 0:00:38.1]}
28. Qg4 {[%clk 0:00:08.8]} 28... Rd1 {[%clk 0:00:32.7]} 29. Rxd1 {[%clk
0:00:07.4]} 29... Qxd1+ {[%clk 0:00:33.6]} 30. Ng1 {[%clk 0:00:07.5]} 30... Bxf3
{[%clk 0:00:32.5]} 31. Qxf3 {[%clk 0:00:05.6]} 31... Qxf3 {[%clk 0:00:32.3]} 32.
Nxf3 {[%clk 0:00:06.4]} 32... e5 {[%clk 0:00:25.4]} 33. Kg1 {[%clk 0:00:01]}
33... e4 {[%clk 0:00:24.3]} 34. Nd2 {[%clk 0:00:01.5]} 34... Bd4+ {[%clk
0:00:24.8]} 35. Kf1 {[%clk 0:00:00.5]} 35... f5 {[%clk 0:00:25.4]} 0-1